bitfinex-derivatives/quotes_ETHF0:USTF0_20250214
["timestamp","ask_amount","ask_price","bid_price","bid_amount"]
[1739549285334,0.72981,2739.8,2739.7,0.72982]
[1739549285638,3.93754,2740.1,2739.9,0.72976]
[1739549286033,0.72977,2740.0,2739.8,0.7298]
[1739549286232,3.2078,2740.1,2739.4,0.9479]
[1739549286432,0.72985,2739.7,2739.5,0.72987]
[1739549286634,3.2078,2739.8,2739.3,0.00547305]
[1739549286930,3.2078,2740.1,2739.4,3.2078]
[1739549287133,0.7298,2739.9,2739.6,0.72984]
[1739549287438,0.7298,2739.9,2739.4,3.2078]
[1739549287636,0.8902,2740.0,2739.4,3.2078]
[1739549287837,0.72981,2739.9,2739.6,0.72985]
[1739549288038,0.7298,2739.9,2739.4,3.2078]
[1739549288335,0.8902,2740.0,2707.6,2.84964877]
[1739549288336,3.54633922,2739.5,2738.5,4.186]
[1739549288633,3.54633922,2738.8,2738.5,3.2078]
[1739549288834,6.75413922,2738.8,2738.2,0.9429]
[1739549289036,3.93799,2738.4,2737.9,3.2078]
[1739549289234,0.73022,2738.3,2737.9,3.9381]
[1739549290030,3.21327305,2738.4,2737.9,0.7303]
[1739549290227,3.2078,2738.1,2737.8,0.7340124]
[1739549290527,3.2078,2738.1,2737.8,0.0036824]
[1739549290731,1.908,2738.1,2738.0,0.73029]
[1739549291039,1.908,2738.1,2737.9,0.7303]
[1739549291236,1.908,2738.1,2737.8,0.0036824]
[1739549291435,3.21327305,2738.4,2737.8,0.0036824]
[1739549291639,5.12127305,2738.4,2737.8,0.0036824]
[1739549292138,0.00547305,2738.4,2738.3,0.73021]
[1739549294637,0.00547305,2738.4,2737.9,0.7303]
[1739549294839,3.2078,2738.2,2737.8,0.0036824]
[1739549295343,3.93812,2737.9,2737.8,0.0036824]
[1739549295637,3.2078,2737.9,2737.0,4.1123]
[1739549295834,1.908,2738.0,2737.1,0.73052]
[1739549295835,0.73045,2737.4,2737.1,0.73052]
[1739549296035,0.73044,2737.5,2737.0,0.9045]
[1739549296238,0.73045,2737.4,2737.1,0.73051]
[1739549296433,3.2078,2737.6,2737.0,0.9045]
[1739549296638,0.73043,2737.5,2737.2,0.73049]
[1739549296837,3.2078,2737.6,2737.0,0.9045]
[1739549297041,0.73054,2737.1,2736.7,0.73061]
[1739549297234,0.73054,2737.1,2736.3,3.2078]
[1739549297235,3.2078,2737.1,2736.3,3.2078]
[1739549297541,3.93842,2736.8,2736.4,0.7307]
[1739549297746,0.98437305,2737.0,2736.3,3.2078]
[1739549297941,0.73059,2736.9,2736.5,0.73067]
[1739549298242,0.73061,2736.8,2736.3,3.2078]
[1739549298447,3.2078,2736.9,2736.3,3.2078]
[1739549298640,0.73063,2736.8,2736.4,0.7307]
[1739549298836,3.2078,2736.6,2736.0,1.8079]
[1739549299146,0.73073,2736.4,2735.9,3.93863]
[1739549299340,3.2078,2736.6,2735.9,3.2078]
[1739549299646,5.1158,2736.6,2736.3,0.73073]
[1739549300348,3.2078,2736.6,2735.9,3.2078]
[1739549300545,3.2078,2736.6,2736.1,0.73078]
[1739549300844,3.93848,2736.6,2735.9,3.2078]
[1739549301048,3.2078,2736.6,2735.9,3.2078]
[1739549301240,3.2078,2736.6,2736.3,0.73073]
[1739549301741,3.93847,2736.6,2736.2,0.73075]
[1739549302341,3.93847,2736.6,2736.2,0.73076]
[1739549302746,3.2078,2736.6,2735.9,3.2078]
[1739549303045,3.2078,2736.6,2736.2,0.73076]
[1739549303246,0.7307,2736.5,2736.2,0.73076]
[1739549303442,7.07949282,2736.6,2735.9,3.2078]
[1739549303646,0.73078,2736.2,2735.9,0.73085]
[1739549303843,3.2078,2736.0,2735.3,3.2078]
[1739549304048,3.2078,2736.0,2735.4,0.73097]
[1739549304243,3.2078,2735.6,2734.9,3.2078]
[1739549304446,1.908,2735.5,2734.6,3.2078]
[1739549304753,3.2078,2735.6,2735.5,0.73096]
[1739549304754,1.908,2735.6,2735.5,0.73096]
[1739549304948,7.908,2735.6,2734.9,3.2078]
[1739549305249,7.908,2735.6,2734.4,2.72538]
[1739549305250,0.00548316,2735.3,2735.2,0.73104]
[1739549307043,3.16e-06,2735.3,2735.2,0.73104]
[1739549307545,0.73105,2735.2,2735.0,0.73108]
[1739549307746,3.16e-06,2735.3,2734.8,3.2078]
[1739549307747,0.73102316,2735.3,2734.8,3.2078]
[1739549307950,0.73105,2735.2,2735.0,0.73108]
[1739549308248,3.16e-06,2735.3,2734.8,3.21328316]
[1739549308444,4.14214401,2735.3,2734.8,0.00548316]
[1739549308640,0.73112,2734.9,2734.8,0.00548316]
[1739549308836,5.1168,2735.1,2734.8,0.00548316]
[1739549309243,5.84786,2735.1,2734.9,0.7311]
[1739549309449,5.1168,2735.1,2734.9,0.7311]
[1739549309643,3.2078,2735.1,2735.0,0.73109]
[1739549309849,0.73112,2734.9,2734.8,0.00548316]
[1739549310050,3.2078,2735.1,2734.1,5.03609]
[1739549310250,3.93895,2734.8,2734.1,5.03609]
[1739549310748,0.73115,2734.8,2734.6,0.73119]
[1739549310948,3.93895,2734.8,2734.5,0.7312]
[1739549311138,0.73108,2735.1,2734.7,0.73117]
[1739549311345,0.7311,2735.0,2734.8,0.73113]
[1739549311550,3.2078,2735.1,2734.2,1.82827]
[1739549311737,3.2078,2735.1,2734.4,3.2078]
[1739549311944,0.96630316,2735.3,2734.7,5.03574]
[1739549312141,3.16e-06,2735.3,2735.2,0.73104]
[1739549313351,1.90900316,2735.3,2734.3,5.03599]
[1739549313548,3.55948982,2735.1,2734.9,0.7311]
[1739549314449,5.1168,2735.2,2734.6,3.2078]
[1739549314653,1.909,2735.2,2735.1,0.73106]
[1739549315253,0.73113,2734.9,2734.7,0.73116]
[1739549315450,3.2078,2734.9,2734.8,0.73114]
[1739549315758,0.73116,2734.8,2734.3,3.2078]
[1739549316054,4.29065982,2734.7,2734.5,0.7312]
[1739549316249,3.55948982,2734.7,2734.3,3.2078]
[1739549316449,4.29067982,2734.7,2734.5,0.73122]
[1739549316651,3.2078,2734.6,2733.9,3.2078]
[1739549316848,3.55948982,2734.4,2734.3,0.73126]
[1739549317046,4.29074982,2734.4,2734.2,0.73129]
[1739549317253,3.55948982,2734.4,2733.6,3.2078]
[1739549317457,3.55948982,2734.1,2734.0,0.73136]
[1739549317649,4.29081982,2734.1,2733.9,0.73138]
[1739549317849,0.73137,2734.0,2733.7,0.73142]
[1739549318152,4.29091982,2733.8,2733.4,0.73152]
[1739549318348,4.29098982,2733.5,2733.0,3.2078]
[1739549318550,3.55948982,2733.5,2733.0,3.2078]
[1739549318755,4.29100982,2733.5,2733.0,3.2078]
[1739549318950,3.55948982,2733.5,2733.3,0.73153]
[1739549319253,3.55948982,2733.5,2733.2,0.73156]
[1739549319459,3.55948982,2733.5,2733.3,0.73154]
[1739549319655,3.55948982,2733.5,2733.0,3.2078]
[1739549319857,3.55948982,2733.5,2733.3,0.73153]
[1739549320152,3.55948982,2733.5,2733.0,3.2078]
[1739549320356,3.55948982,2733.5,2733.4,0.73152]
[1739549321361,3.55948982,2733.5,2733.0,3.2078]
[1739549321558,3.55948982,2733.5,2733.4,0.73152]
[1739549322063,3.2078,2733.6,2733.0,3.2078]
[1739549322268,1.909,2733.6,2733.5,0.73149]
[1739549325160,5.1168,2733.6,2733.0,3.2078]
[1739549325365,0.73149,2733.5,2733.3,0.73154]
[1739549325560,0.73154,2733.4,2733.1,0.73158]
[1739549325762,0.73154,2733.4,2733.0,3.2078]
[1739549325963,0.73158,2733.2,2733.0,0.73161]
[1739549326161,3.93936,2733.3,2733.1,0.73159]
[1739549326467,3.93936,2733.3,2733.1,0.7316]
[1739549326664,0.73157,2733.2,2733.0,0.73161]
[1739549327070,3.2078,2733.3,2732.7,0.971]
[1739549327371,3.2078,2733.3,2733.0,0.73161]
[1739549327570,0.8936,2733.4,2732.7,4.1788]
[1739549327766,0.73163,2733.1,2732.7,3.2078]
[1739549328070,1.909,2733.1,2732.7,3.2078]
[1739549328365,1.909,2733.1,2733.0,0.73163]
[1739549328571,2.64061,2733.1,2732.9,0.73164]
[1739549328768,1.909,2733.1,2732.3,3.2078]
[1739549328968,6.76728982,2732.9,2732.2,0.9232]
[1739549329166,0.73172,2732.7,2732.5,0.73174]
[1739549329368,6.76728982,2732.9,2732.2,0.9232]
[1739549329560,0.73169,2732.8,2732.6,0.73172]
[1739549329768,0.7317,2732.8,2732.6,0.73172]
[1739549329970,6.76728982,2732.9,2732.7,0.73169]
[1739549329971,4.29114982,2732.9,2732.7,0.73169]
[1739549330168,1.909,2732.8,2732.4,1.82947]
[1739549330373,0.8936,2733.4,2732.8,1.82916]
[1739549330670,3.55948982,2733.2,2732.5,5.03718]
[1739549330871,0.73164,2733.0,2732.8,0.73167]
[1739549331065,0.73163,2733.0,2732.8,0.73167]
[1739549331663,0.73169,2732.8,2732.5,3.2078]
[1739549331867,6.76728982,2732.6,2732.0,3.2078]
[1739549332063,3.2078,2732.2,2731.5,3.2078]
[1739549332273,7.11897964,2731.6,2729.9,3.2078]
[1739549332568,1.909,2732.1,2730.5,3.2078]
[1739549332569,3.2078,2731.2,2730.5,3.2078]
[1739549332769,0.00548316,2731.0,2730.9,0.73216]
[1739549332966,0.00548316,2731.0,2730.9,0.73219]
[1739549333167,3.56497298,2731.0,2730.6,0.978]
[1739549333367,3.2078,2730.9,2730.6,1.71026]
[1739549333564,3.55948982,2730.7,2729.9,3.2078]
[1739549333869,3.2078,2730.3,2729.8,0.73247]
[1739549334064,3.55948982,2730.4,2729.6,1.8876]
[1739549334266,3.2078,2730.6,2729.8,3.2078]
[1739549334467,3.2078,2730.9,2730.6,0.73226]
[1739549334672,3.56497298,2731.0,2730.7,0.73224]
[1739549334673,1.909,2730.8,2730.7,0.73224]
[1739549334873,1.90316906,2730.8,2730.1,3.2078]
[1739549335175,3.55948982,2730.7,2730.1,3.2078]
[1739549335472,3.2078,2730.6,2730.4,0.73232]
[1739549335672,3.2078,2730.5,2730.4,0.73232]
[1739549336573,3.55948982,2730.7,2730.6,0.73227]
[1739549336769,6.76728982,2730.7,2730.1,3.2078]
[1739549337167,6.76728982,2730.7,2730.0,0.8972]
[1739549337168,6.77277298,2731.0,2730.4,3.2078]
[1739549337371,3.21328316,2731.0,2730.9,0.73219]
[1739549337778,3.55948982,2731.3,2730.9,0.73219]
[1739549337779,3.2078,2731.3,2730.9,0.73219]
[1739549337970,3.55948982,2731.6,2730.9,0.73219]
[1739549338169,3.55948982,2731.6,2731.5,0.73203]
[1739549339369,3.55948982,2731.6,2731.3,0.0054934]
[1739549339672,3.93985,2731.4,2731.3,0.0054934]
[1739549340175,12.76728982,2731.4,2730.2,3.2078]
[1739549340380,3.55948982,2731.1,2730.8,0.7322]
[1739549340777,3.55948982,2731.1,2731.0,0.73216]
[1739549341270,0.73221,2730.9,2730.4,0.73231]
[1739549341470,6.76728982,2730.6,2729.8,3.2078]
[1739549341773,3.55948982,2730.6,2730.5,0.7323]
[1739549341974,1.91,2730.7,2730.2,3.2078]
[1739549342172,3.55948982,2730.6,2730.4,0.73231]
[1739549342475,3.55948982,2730.6,2730.5,0.7323]
[1739549342982,0.0054934,2730.7,2730.6,0.73227]
[1739549343277,0.0054934,2730.7,2730.2,3.2078]
[1739549343472,0.0054934,2730.7,2730.6,0.73227]
[1739549343872,0.0054934,2730.7,2730.5,3.2078]
[1739549344078,3.93989,2731.3,2730.5,3.2078]
[1739549344280,3.2078,2731.0,2730.5,3.2078]
[1739549344475,0.73221,2730.9,2730.6,0.73225]
[1739549344869,3.2078,2731.0,2730.1,3.2078]
[1739549345176,3.2078,2730.7,2730.1,3.2078]
[1739549345478,6.76728982,2730.4,2730.3,0.0054934]
[1739549346177,7.49960982,2730.4,2730.3,0.0054934]
[1739549346672,0.73237,2730.3,2729.9,0.73244]
[1739549346876,2.64239,2730.2,2729.9,0.73244]
[1739549347269,1.91,2730.2,2729.9,0.73244]
[1739549347571,1.91,2730.2,2730.1,0.7324]
[1739549348675,3.2078,2730.4,2730.3,0.73235]
[1739549348981,3.2078,2730.4,2729.8,1.83121]
[1739549348982,5.1178,2730.4,2729.7,0.8972]
[1739549349168,5.1178,2730.4,2729.5,3.2078]
[1739549349169,9.01287279,2730.4,2729.5,3.2078]
[1739549349475,3.2078,2730.0,2729.5,3.2078]
[1739549349682,3.2078,2729.6,2728.8,3.2078]
[1739549349977,7.10287279,2729.6,2728.8,3.2078]
[1739549350380,7.10287279,2729.6,2728.8,5.03964]
[1739549350585,7.10287279,2729.6,2729.5,0.73256]
[1739549350586,3.2078,2729.6,2729.5,0.73256]
[1739549351183,3.2078,2730.0,2729.2,3.2078]
[1739549351478,3.2078,2730.0,2729.9,0.73246]
[1739549352073,1.8278,2730.7,2730.6,0.73227]
[1739549352273,0.0054934,2730.8,2730.7,0.73224]
[1739549352684,0.0054934,2730.8,2730.6,0.73226]
[1739549352881,0.0054934,2730.8,2730.2,3.2078]
[1739549353180,0.73235,2730.4,2730.1,0.73239]
[1739549353372,3.2078,2730.2,2729.5,3.2078]
[1739549353573,7.10287279,2729.9,2729.2,3.2078]
[1739549353877,0.9837,2730.3,2728.8,3.2078]
[1739549353878,3.2078,2729.3,2728.8,3.2078]
[1739549354090,3.89507279,2729.5,2728.1,1.83233]
[1739549354091,3.2078,2728.9,2728.5,3.2078]
[1739549354285,1.911,2729.2,2728.4,3.2078]
[1739549354582,0.0054934,2729.0,2728.9,0.73271]
[1739549355482,0.0054934,2729.0,2728.4,3.2078]
[1739549355483,0.0054934,2729.0,2728.7,0.73276]
[1739549355685,0.0054934,2729.0,2728.4,3.2078]
[1739549355686,0.7382034,2729.0,2728.6,0.73279]
[1739549356075,0.7382034,2729.0,2728.7,0.73278]
[1739549356281,3.2078,2728.9,2728.1,4.1494]
[1739549356780,3.2078,2728.4,2727.8,3.2078]
[1739549356976,3.2078,2728.4,2727.5,3.2078]
[1739549357475,4.1504,2728.4,2727.5,3.2078]
[1739549357676,1.911,2728.3,2727.8,3.2078]
[1739549357980,2.64389,2728.3,2727.8,3.94081]
[1739549358181,5.80607279,2728.3,2727.4,3.2078]
[1739549358576,5.80607279,2728.3,2727.9,0.73299]
[1739549358785,5.80607279,2728.3,2727.4,3.2078]
[1739549358973,3.2078,2728.1,2727.4,3.2078]
[1739549360582,0.73304,2727.8,2727.4,3.94092]
[1739549360777,0.73304,2727.8,2727.1,0.9173]
[1739549360778,3.94086,2727.7,2727.3,0.73314]
[1739549360978,3.94086,2727.7,2726.7,3.2078]
[1739549360979,3.2078,2727.4,2726.7,3.2078]
[1739549361187,1.911,2727.3,2726.8,0.73327]
[1739549361378,1.911,2727.3,2726.7,3.2078]
[1739549361379,2.64417,2727.3,2726.7,3.2078]
[1739549361685,1.9164934,2727.3,2726.7,3.2078]
[1739549361886,0.0054934,2727.3,2727.2,0.73318]
[1739549362383,0.0054934,2727.3,2726.7,3.2078]
[1739549362882,7.10287279,2727.1,2726.4,3.2078]
[1739549363083,2.64526,2727.0,2726.6,0.73333]
[1739549363283,1.65194,2727.0,2726.7,0.7333]
[1739549363580,1.9174934,2727.3,2726.7,3.2078]
[1739549363788,3.5693634,2727.3,2727.0,0.73323]
[1739549363981,2.8361934,2727.3,2726.7,3.2078]
[1739549364183,3.2078,2727.1,2726.9,0.73324]
[1739549364382,3.2078,2727.1,2727.0,0.73324]
[1739549364589,3.2078,2727.1,2726.4,3.2078]
[1739549364788,3.2078,2727.1,2727.0,0.72719883]
[1739549365085,3.2078,2727.1,2726.8,0.73327]
[1739549365286,3.2078,2727.1,2726.3,3.2078]
[1739549365482,0.7333,2726.8,2726.3,3.2078]
[1739549365677,0.8983,2726.7,2726.3,3.2078]
[1739549365876,0.8983,2726.7,2726.5,0.73336]
[1739549366080,0.8983,2726.7,2726.3,3.2078]
[1739549366287,0.8983,2726.7,2726.5,0.73337]
[1739549366483,0.8983,2726.7,2726.6,0.73334]
[1739549366684,1.912,2726.8,2726.3,3.2078]
[1739549366880,1.912,2726.8,2726.7,0.73332]
[1739549367280,3.2078,2727.1,2727.0,0.73324]
[1739549367476,0.0054934,2727.3,2727.2,0.73318]
[1739549367680,0.0054934,2727.3,2727.2,3.94098]
[1739549368684,3.2078,2728.6,2727.2,9.2078]
[1739549368890,3.2078,2728.6,2727.6,3.2078]
[1739549369097,3.94062,2728.6,2728.3,0.73288]
[1739549369293,3.2078,2728.6,2727.9,3.2078]
[1739549369591,3.2078,2728.6,2728.5,0.73283]
[1739549369789,3.2078,2728.6,2728.0,0.0054934]
[1739549369790,0.0054934,2728.5,2728.0,0.0054934]
[1739549369984,0.73289,2728.3,2728.0,0.0054934]
[1739549370186,0.0054934,2728.5,2728.1,0.73293]
[1739549370486,0.73289,2728.3,2728.0,0.0054934]
[1739549370786,7.83577279,2728.3,2728.0,0.0054934]
[1739549370991,7.10287279,2728.3,2728.0,0.0054934]
[1739549371399,0.73291,2728.2,2728.0,0.0054934]
[1739549371693,1.912,2728.1,2728.0,0.0054934]
[1739549372187,1.912,2728.1,2727.4,3.2078]
[1739549372488,3.89507279,2727.9,2727.6,0.73306]
[1739549372692,3.89507279,2727.9,2727.4,3.2078]
[1739549372895,3.2078,2728.0,2727.9,0.73299]
[1739549373090,3.2078,2728.0,2727.0,3.2078]
[1739549373290,3.2078,2727.4,2726.6,4.1477]
[1739549373594,5.1198,2727.4,2727.2,0.73317]
[1739549373891,5.1198,2727.4,2726.6,4.1477]
[1739549374094,5.1198,2727.4,2727.3,0.73316]
[1739549374293,3.2078,2727.4,2727.3,0.73316]
[1739549374489,0.9471,2727.7,2727.6,0.73307]
[1739549374790,3.2078,2728.0,2727.9,0.73299]
[1739549374993,5.1198,2728.0,2727.3,3.2078]
[1739549375193,5.85278,2728.0,2727.6,0.73306]
[1739549375390,5.85278,2728.0,2727.3,3.2078]
[1739549375391,5.1198,2728.0,2727.3,3.2078]
[1739549375992,5.1198,2728.0,2727.9,0.73299]
[1739549376191,1.912,2728.0,2727.9,0.73299]
[1739549377287,3.2078,2728.3,2727.5,1.83276]
[1739549377489,3.2078,2728.3,2728.2,0.73291]
[1739549377690,0.0054934,2728.5,2728.0,1.83241]
[1739549377890,0.0054934,2728.5,2728.4,0.73286]
[1739549380197,3.9461234,2728.5,2728.2,0.73289]
[1739549380698,2.64488,2728.4,2728.1,0.73293]
[1739549380899,4.81647279,2728.3,2727.8,3.2078]
[1739549381191,3.2078,2728.2,2727.2,5.04076]
[1739549381391,4.1464,2728.2,2727.2,5.04076]
[1739549381592,3.2078,2727.9,2727.2,5.04076]
[1739549381801,5.1198,2727.9,2727.7,0.73304]
[1739549381998,5.1198,2727.9,2727.2,5.04076]
[1739549382400,5.1198,2727.9,2727.7,0.73303]
[1739549382589,5.1198,2727.9,2727.8,0.73302]
[1739549382796,0.9386,2728.2,2727.5,3.2078]
[1739549383303,1.67153,2728.2,2727.9,0.73299]
[1739549383505,0.9386,2728.2,2727.9,0.73297]
[1739549383802,0.9386,2728.2,2727.5,3.2078]
[1739549384001,0.9386,2728.2,2728.1,0.73294]
[1739549384299,0.0054934,2728.5,2728.1,3.2078]
[1739549384495,0.0054934,2728.5,2728.4,0.73286]
[1739549385090,0.7383434,2728.5,2728.3,0.73289]
[1739549385297,0.7383434,2728.5,2728.2,0.7329]
[1739549385597,0.7383434,2728.5,2727.8,3.2078]
[1739549385598,0.73293,2728.2,2727.8,3.2078]
[1739549385802,3.94071,2728.3,2728.0,0.73295]
[1739549386005,0.73299,2728.0,2727.7,0.73304]
[1739549386193,3.2078,2727.9,2727.1,0.9812]
[1739549386396,3.2078,2727.5,2726.9,5.04092]
[1739549386699,3.94084,2727.8,2727.0,1.8331]
[1739549386907,3.2078,2727.8,2727.6,0.73306]
[1739549387202,3.2078,2727.8,2727.0,1.8331]
[1739549387393,3.2078,2727.8,2727.7,0.73305]
[1739549388505,3.94084,2727.8,2727.5,0.73308]
[1739549388806,3.2078,2727.8,2727.2,3.2078]
[1739549389102,3.2078,2727.8,2727.6,0.73306]
[1739549389503,3.2078,2727.8,2727.7,0.73305]
[1739549390100,3.94083,2727.8,2727.6,0.73307]
[1739549390291,3.2078,2727.8,2727.7,0.73305]
[1739549390492,3.2078,2727.8,2727.2,5.04073]
[1739549390696,3.2078,2727.6,2726.9,5.04096]
[1739549390896,3.2078,2727.2,2726.8,0.9629]
[1739549391102,3.2078,2726.9,2726.4,3.214]
[1739549391303,3.2078,2726.9,2726.4,3.2078]
[1739549391506,0.73331,2726.8,2726.6,0.73334]
[1739549391802,0.73331,2726.8,2726.0,0.9295]
[1739549391803,0.73333,2726.7,2726.0,4.1373]
[1739549392004,3.2078,2726.6,2726.0,0.9295]
[1739549392208,3.2078,2726.6,2726.5,0.73337]
[1739549392407,2.64532,2726.7,2726.6,0.73334]
[1739549392408,1.912,2726.7,2726.6,0.73334]
[1739549393809,1.912,2726.7,2726.0,4.1373]
[1739549394007,1.912,2726.7,2726.6,0.73334]
[1739549394210,0.0054934,2726.9,2726.2,1.83359]
[1739549394409,0.0054934,2726.9,2726.4,3.2078]
[1739549394707,0.0054934,2726.9,2726.8,0.73329]
[1739549395709,0.0054934,2726.9,2726.3,4.1235]
[1739549395910,0.0054934,2726.9,2726.8,0.73329]
[1739549396108,0.0054934,2726.9,2726.3,3.2078]
[1739549396309,0.7333,2726.8,2726.3,3.2078]
[1739549396606,0.0054934,2726.9,2726.3,3.2078]
[1739549396810,0.0054934,2726.9,2726.7,0.73329]
[1739549397305,0.0054934,2726.9,2726.3,3.2078]
[1739549397504,0.73345,2726.3,2726.0,0.9295]
[1739549397699,3.2078,2726.5,2726.0,0.9295]
[1739549397902,0.73346,2726.2,2726.0,1.66299]
[1739549398099,3.2078,2727.5,2726.1,3.2078]
[1739549398304,3.2078,2727.5,2726.8,0.73329]
[1739549398500,3.94091,2727.5,2726.8,0.73329]
[1739549398711,3.2078,2727.5,2726.8,0.73329]
[1739549399208,0.73315,2727.4,2726.8,0.73329]
[1739549399707,5.72754279,2728.0,2726.8,0.73329]
[1739549399708,0.73291,2728.3,2727.2,1.83291]
[1739549399914,3.2078,2728.7,2727.9,5.04024]
[1739549400209,3.2078,2728.7,2728.6,0.73281]
[1739549400407,3.2078,2728.7,2728.4,0.73286]
[1739549400606,3.2078,2728.7,2728.2,3.2078]
[1739549400910,3.2078,2728.7,2728.3,0.0054934]
[1739549401214,3.2078,2728.7,2728.6,0.73281]
[1739549401511,0.0054934,2728.8,2728.7,0.73278]
[1739549401715,0.0054934,2728.8,2728.3,0.0054934]
[1739549402106,0.0054934,2728.8,2728.7,0.73278]
[1739549402512,0.0054934,2728.8,2728.3,0.0054934]
[1739549402705,3.2078,2728.7,2728.3,0.0054934]
[1739549403211,0.0054934,2728.8,2728.6,0.73281]
[1739549403410,0.0054934,2728.8,2728.3,0.0054934]
[1739549403811,3.2078,2728.6,2728.3,0.0054934]
[1739549404117,3.2078,2728.6,2728.4,0.73286]
[1739549404317,3.2078,2728.6,2728.3,0.0054934]
[1739549404618,0.73297,2728.1,2727.6,0.73307]
[1739549404806,5.1198,2728.1,2726.9,4.1867]
[1739549405009,3.2078,2727.8,2727.4,0.73311]
[1739549405210,3.2078,2727.8,2727.5,0.73308]
[1739549405517,3.2078,2727.8,2726.9,3.2078]
[1739549406013,3.2078,2727.5,2727.1,0.73319]
[1739549406311,5.85292,2727.5,2727.1,0.73319]
[1739549406503,5.85292,2727.5,2726.9,3.2078]
[1739549406504,0.931,2727.4,2727.0,0.73322]
[1739549406814,0.931,2727.4,2727.0,0.73324]
[1739549407001,0.931,2727.4,2726.9,3.2078]
[1739549407518,0.9364934,2727.4,2727.3,0.73316]
[1739549408016,0.9364934,2727.4,2726.5,3.2078]
[1739549408310,3.2078,2726.6,2726.3,0.73341]
[1739549408511,3.2078,2726.6,2725.6,3.2078]
[1739549408811,5.80707279,2726.8,2725.6,3.2078]
[1739549408812,3.2078,2726.3,2725.6,4.1904]
[1739549409011,5.1198,2726.3,2725.9,0.73352]
[1739549409203,5.1198,2726.3,2725.6,4.1904]
[1739549409403,5.1198,2726.3,2726.1,0.73348]
[1739549409718,1.912,2726.3,2726.2,0.73345]
[1739549409903,1.912,2726.3,2725.6,4.1904]
[1739549409904,5.1198,2726.3,2725.6,4.1904]
[1739549410311,3.2078,2726.0,2725.6,0.9826]
[1739549410513,1.912,2726.3,2726.2,0.73345]
[1739549411010,1.912,2726.3,2725.6,4.1904]
[1739549411414,5.1198,2726.3,2726.0,0.73349]
[1739549411619,5.1198,2726.3,2725.6,4.1904]
[1739549411912,3.2078,2726.3,2726.2,0.73345]
[1739549412115,5.1198,2726.4,2726.1,0.73347]
[1739549412315,1.912,2726.4,2726.0,0.00566098]
[1739549412618,5.1198,2726.4,2726.0,0.00566098]
[1739549413016,3.2078,2726.4,2726.3,0.73342]
[1739549413316,0.9303,2727.1,2726.2,3.2078]
[1739549413317,1.912,2726.9,2726.2,3.2078]
[1739549413507,1.912,2726.9,2726.8,0.73329]
[1739549413708,3.2132934,2727.4,2726.0,0.00566098]
[1739549413908,3.2132934,2727.4,2727.3,0.73316]
[1739549414110,0.0054934,2727.4,2727.3,0.73316]
[1739549418920,1.9539,2728.4,2728.3,0.73289]
[1739549419115,1.9539,2728.4,2727.9,0.73299]
[1739549419116,1.9539,2728.4,2727.6,1.83268]
[1739549419321,1.9539,2728.4,2728.1,0.73293]
[1739549419522,3.2078,2728.2,2727.4,3.2078]
[1739549419714,3.2078,2728.2,2727.1,3.2078]
[1739549420021,0.0054934,2727.9,2727.8,0.73302]
[1739549420214,3.4e-06,2727.9,2727.8,3.94082]
[1739549420417,3.4e-06,2727.9,2727.8,9.94082]
[1739549422917,3.4e-06,2727.9,2727.8,3.94082]
[1739549423430,3.4e-06,2727.9,2727.8,9.94082]
[1739549423727,3.4e-06,2727.9,2727.8,11.85182]
[1739549424517,3.4e-06,2727.9,2727.8,5.85182]
[1739549426020,3.4e-06,2727.9,2727.8,11.85182]
[1739549426416,3.4e-06,2727.9,2727.8,5.85182]
[1739549427227,3.4e-06,2727.9,2727.8,11.85182]
[1739549428027,3.4e-06,2727.9,2727.8,5.85182]
[1739549429633,3.4e-06,2727.9,2727.8,11.85182]
[1739549431625,3.4e-06,2727.9,2727.8,5.85182]
[1739549433837,3.4e-06,2727.9,2727.4,0.0054934]
[1739549434238,3.4e-06,2727.9,2727.8,0.73302]
[1739549434427,3.4e-06,2727.9,2727.7,0.73304]
[1739549434628,3.4e-06,2727.9,2727.4,0.0054934]
[1739549434936,1.6586034,2727.9,2727.8,0.73302]
[1739549435133,1.6586034,2727.9,2727.4,0.0054934]
[1739549435327,1.911,2727.8,2727.4,0.0054934]
[1739549435528,3.2078,2727.6,2726.9,3.2078]
[1739549435729,0.73327,2726.9,2726.6,0.73333]
[1739549436030,3.2078,2726.8,2726.2,3.2078]
[1739549436535,3.9411,2726.8,2726.4,0.73339]
[1739549436742,0.9456,2726.7,2726.4,0.73339]
[1739549437123,3.94119,2726.5,2726.2,0.0054934]
[1739549437328,3.2078,2726.5,2726.2,0.7389434]
[1739549437628,3.2078,2726.5,2726.2,0.0054934]
[1739549437830,0.73342,2726.4,2726.0,0.73915098]
[1739549438026,5.85218,2726.5,2726.1,0.73347]
[1739549438223,0.7334,2726.4,2726.0,0.00566098]
[1739549438427,5.85219,2726.5,2726.0,0.73915098]
[1739549438629,0.73343,2726.3,2726.0,0.00566098]
[1739549438838,0.73341,2726.4,2726.0,0.00566098]
[1739549439133,3.2078,2726.2,2726.0,0.00566098]
[1739549439335,3.2078,2726.2,2725.7,0.73357]
[1739549439633,3.2078,2725.9,2725.4,0.73365]
[1739549439835,3.2078,2725.6,2725.3,0.73368]
[1739549440338,3.2078,2725.6,2725.1,3.2078]
[1739549440635,3.2078,2725.3,2725.0,0.73376]
[1739549440837,3.2078,2725.3,2724.8,3.2078]
[1739549441035,3.2078,2725.3,2725.0,0.73376]
[1739549441233,3.2078,2725.3,2724.8,3.2078]
[1739549441537,3.2078,2725.3,2724.4,3.2078]
[1739549441732,0.73373,2725.2,2724.8,0.73381]
[1739549442130,0.73374,2725.2,2724.8,0.73381]
[1739549442339,3.2078,2725.3,2725.0,0.73376]
[1739549442541,2.852,2725.2,2724.4,3.2078]